{"text_format":"1","workbook":"xlsx","n_sheets":1,"sheets":["01.10.2019 "],"not_rendered":{"charts":0,"images":0,"macros":0,"external_links":0,"defined_names":1,"comments":0,"pivot_tables":0},"unopened":[],"bounds":{"document_bytes":16777216,"sheet_cells":100000,"rows_first":2000,"rows_last":500,"rows_between":2000,"halvings":0,"cell_chars":16384,"cell_head_chars":4096},"cells_cut":0,"cells_raw":0,"read":"whole","date_system":"1900"}

{"sheet":"01.10.2019 ","index":0,"n_rows":60,"n_cols":6,"rows_kept":60,"cut":false,"hidden":false,"merged":[[60,1,60,2],[61,1,61,2],[58,2,58,3],[59,2,59,3],[0,3,0,5],[1,3,1,5],[3,3,3,5],[2,3,2,5],[5,0,5,5]]}
[null,null,null,"Приложение №11"]
[null,null,null,"к постановлению администрации"]
[null,null,null,"ЗАТО г.Радужный Владимирской области"]
[null,null,null,"от 28.10.2019г.№ 1467"]
[]
["Сведения о фактической численности муниципальных служащих, работников казенных и бюджетных учреждений и расходы на их денежное содержание по состоянию за 9 месяцев 2019 года"]
[null,null,null,null,null,"тыс.руб."]
["№п/п","Код раздела (подраздела)","Наименование раздела (подраздела) расходов","Фактическая численность на 01.10.2019 года (чел.)","Годовой фонд оплаты труда с начислениями","Исполнено за отчетный период"]
[1,2,3,4,5,6]
[1,"0100","Общегосударственные вопросы",{"$f":"D12+D13+D14+D15+D16","v":178},{"$f":"E12+E13+E14+E15+E16","v":56444.5},{"$f":"F13+F14+F15+F16","v":41176.449999999997}]
[null,null,"в том числе:"]
["1.1","0102","Функционирование высшего должностного лица субъекта Российской Федерации и муниципального образования",1]
["1.2","0103","Функционирование законодательных (представительных) органов государственной власти и представительных органов муниципальных образований",2,1148.7,852.54]
["1.3","0104","Функционирование Правительства Российской Федерации, высших исполнительных органов государственной власти субъектов Российской Федерации, местных администраций",18,10404.34,6992.4]
["1.4","0106","Обеспечение деятельности финансовых, налоговых и таможенных органов и органов финансового (финансово-бюджетного) надзора",10,5047.83,3501.69]
["1.5","0113","Другие общегосударственные вопросы",147,39843.629999999997,29829.82]
["2","0300","Национальная безопасность и правоохранительная деятельность, всего, в том числе",{"$f":"D19","v":4},{"$f":"E19","v":2227.71},{"$f":"F19","v":1563.76}]
[null,null,"в том числе:"]
["2.1","0309","Защита населения и территории от чрезвычайных ситуаций природного и техногенного характера, гражданская оборона",4,2227.71,1563.76]
["3.","0400","Национальная экономика",{"$f":"D22","v":38},{"$f":"E22","v":15351.93},10716.86]
[null,null,"в том числе:"]
["3.1","0409","Дорожное хозяйство (дорожные фонды)",38,15351.93,10716.86]
["4.","0500","Жилищно-коммунальное хозяйство",{"$f":"D25+D26","v":94},{"$f":"E25+E26","v":34798.06},25438.42]
[null,null,"в том числе:"]
["4.1","0503","Благоустройство",7,2569.6,1983.55]
["4.2","0505","Другие вопросы в области жилищно-коммунального хозяйства",87,{"$f":"34798.06-2569.6","v":32228.46},{"$f":"25438.42-1983.55","v":23454.87}]
["5","0700","Образование",{"$f":"D29+D30+D31+D32","v":556},{"$f":"E29+E30+E31+E32","v":213359.16000000003},{"$f":"F29+F30+F31+F32","v":153375.22}]
[null,null,"в том числе:"]
["5.1","0701","Дошкольное образование",236,83616.77,60437.09]
["5.2","0702","Общее образование ",194,84530.62,59894.09]
["5.3","0703","Дополнительное образование детей",100,{"$f":"17052.22+18483.92","v":35536.14},{"$f":"12685.77+13445.46","v":26131.23}]
["5.4.","0709","Другие вопросы в области образования",26,9675.6299999999992,6912.81]
["6.","0800","Культура, кинематография",{"$f":"D35+D36","v":93},{"$f":"E35+E36","v":30657.46},{"$f":"F35+F36","v":22711.1}]
[null,null,"в том числе:"]
["6.1","0801","Культура",54,{"$f":"15337.96+4631.26","v":19969.22},{"$f":"11414.3+3430.43","v":14844.73}]
["6.2","0804","Другие вопросы в области культуры, кинематографии",39,10688.24,7866.37]
["7.","1000","Социальная политика",{"$f":"D39","v":2},{"$f":"E39","v":970.97},{"$f":"F39","v":643.04}]
[null,null,"в том числе:"]
["7.1","1006","Другие вопросы в области социальной политики",2,970.97,643.04]
["8.","1100","Физическая культура и спорт",{"$f":"D42","v":6},{"$f":"E42","v":729.63},{"$f":"F42","v":365.46}]
[null,null,"в том числе:"]
["8.1","1103","Спорт высших достижений",6,{"$f":"560.39+169.24","v":729.63},{"$f":"280.69+84.77","v":365.46}]
[null,null,"Всего:",{"$f":"D10+D17+D20+D23+D27+D33+D37+D40","v":971},{"$f":"E10+E17+E20+E23+E27+E33+E37+E40","v":354539.42000000004},{"$f":"F10+F17+F20+F23+F27+F33+F37+F40","v":255990.31}]
[]
[null,null,"Заместитель главы администрации города по финансам и экономике, начальник финансового управления     ",null,"О.М.Горшкова"]
[]
[null,null,"Заместитель начальника финансового управления",null,"М.Л.Семенович"]
[]
[]
[]
[]
[]
[]
[]
[]
[]
[]
[]
[null,null,"Исполнитель В.Н. Милованова"]
[null,null,"3-67-17"]